[Event "*** Titled Tuesday Blitz"]
[Site "Chess.com"]
[Date "2021.04.27"]
[Round "3"]
[White "Bhagya_2312"]
[Black "Grieve72"]
[Result "0-1"]
[WhiteElo "2115"]
[BlackElo "2492"]
[TimeControl "180+1"]
[EndTime "10:29:12 PDT"]
[Termination "Grieve72 won on time"]

1. e4 {[%clk 0:02:58.8]} 1... c5 {[%clk 0:02:57.5]} 2. Nf3 {[%clk 0:02:58.4]}
2... e6 {[%clk 0:02:58]} 3. d4 {[%clk 0:02:58.3]} 3... cxd4 {[%clk 0:02:58.9]}
4. Nxd4 {[%clk 0:02:58.4]} 4... Nc6 {[%clk 0:02:59.3]} 5. Nc3 {[%clk 0:02:58.2]}
5... Qc7 {[%clk 0:02:59.8]} 6. f4 {[%clk 0:02:55.7]} 6... Nxd4 {[%clk
0:02:58.9]} 7. Qxd4 {[%clk 0:02:55.1]} 7... b6 {[%clk 0:02:59.4]} 8. Qf2 {[%clk
0:02:47]} 8... Bb7 {[%clk 0:02:54.4]} 9. Bd3 {[%clk 0:02:45.5]} 9... Nf6 {[%clk
0:02:46.6]} 10. e5 {[%clk 0:02:36.3]} 10... Bc5 {[%clk 0:02:01.1]} 11. Qe2
{[%clk 0:02:25.3]} 11... Nd5 {[%clk 0:01:55.8]} 12. Ne4 {[%clk 0:02:17.6]} 12...
Be7 {[%clk 0:01:35.2]} 13. c3 {[%clk 0:02:11.7]} 13... f5 {[%clk 0:01:33.2]} 14.
Nf2 {[%clk 0:01:55.9]} 14... Nxc3 {[%clk 0:01:22.2]} 15. Qc2 {[%clk 0:01:38.5]}
15... Nd5 {[%clk 0:01:22]} 16. Qxc7 {[%clk 0:01:27.6]} 16... Nxc7 {[%clk
0:01:17.2]} 17. O-O {[%clk 0:01:23.4]} 17... O-O {[%clk 0:01:08.6]} 18. Bd2
{[%clk 0:01:23.2]} 18... Rac8 {[%clk 0:01:05.2]} 19. a4 {[%clk 0:01:11.7]} 19...
a5 {[%clk 0:00:54.2]} 20. Rac1 {[%clk 0:01:02.5]} 20... Nd5 {[%clk 0:00:52.7]}
21. Bb5 {[%clk 0:01:01.6]} 21... Bc6 {[%clk 0:00:52.9]} 22. Ba6 {[%clk 0:00:59]}
22... Ra8 {[%clk 0:00:46.4]} 23. Bb5 {[%clk 0:00:58.9]} 23... Bxb5 {[%clk
0:00:45.5]} 24. axb5 {[%clk 0:00:58.9]} 24... Rfc8 {[%clk 0:00:46.1]} 25. Nd3
{[%clk 0:00:53.9]} 25... Kf7 {[%clk 0:00:37.5]} 26. Kf2 {[%clk 0:00:51]} 26...
d6 {[%clk 0:00:30.1]} 27. Kf3 {[%clk 0:00:48]} 27... h6 {[%clk 0:00:24.2]} 28.
h3 {[%clk 0:00:43.1]} 28... g6 {[%clk 0:00:21.1]} 29. g4 {[%clk 0:00:42.6]}
29... Kg7 {[%clk 0:00:16.9]} 30. Rg1 {[%clk 0:00:39.3]} 30... dxe5 {[%clk
0:00:16.3]} 31. Nxe5 {[%clk 0:00:38.2]} 31... Bc5 {[%clk 0:00:16.7]} 32. Rg2
{[%clk 0:00:34]} 32... Ne7 {[%clk 0:00:11.9]} 33. gxf5 {[%clk 0:00:32.1]} 33...
exf5 {[%clk 0:00:12.8]} 34. Bc3 {[%clk 0:00:29.8]} 34... Kh7 {[%clk 0:00:10.5]}
35. Rd1 {[%clk 0:00:25.2]} 35... Rd8 {[%clk 0:00:09.5]} 36. Rgd2 {[%clk
0:00:24.8]} 36... Rxd2 {[%clk 0:00:05.6]} 37. Rxd2 {[%clk 0:00:24.6]} 37... g5
{[%clk 0:00:04.8]} 38. Rd7 {[%clk 0:00:23.9]} 38... Kg8 {[%clk 0:00:03.7]} 39.
fxg5 {[%clk 0:00:18.6]} 39... hxg5 {[%clk 0:00:04.6]} 40. Nd3 {[%clk 0:00:18.5]}
40... Ng6 {[%clk 0:00:04.3]} 41. Nxc5 {[%clk 0:00:16.8]} 41... bxc5 {[%clk
0:00:05.2]} 42. Rg7+ {[%clk 0:00:16.5]} 42... Kf8 {[%clk 0:00:03.8]} 43. Rxg6
{[%clk 0:00:16.5]} 43... Ke7 {[%clk 0:00:02.7]} 44. Bf6+ {[%clk 0:00:12.2]}
44... Kf7 {[%clk 0:00:02.3]} 45. Rh6 {[%clk 0:00:11.7]} 45... Rg8 {[%clk
0:00:02]} 46. Bc3 {[%clk 0:00:09.5]} 46... g4+ {[%clk 0:00:02.3]} 47. hxg4
{[%clk 0:00:09.2]} 47... fxg4+ {[%clk 0:00:03.2]} 48. Kg3 {[%clk 0:00:09.4]}
48... Rb8 {[%clk 0:00:03.8]} 49. b6 {[%clk 0:00:08]} 49... a4 {[%clk 0:00:04.3]}
50. b7 {[%clk 0:00:05.5]} 50... Ke7 {[%clk 0:00:02.7]} 51. Rh7+ {[%clk
0:00:05.6]} 51... Kd6 {[%clk 0:00:02.8]} 52. Bd2 {[%clk 0:00:05.5]} 52... Kc6
{[%clk 0:00:03.1]} 53. Kxg4 {[%clk 0:00:03.5]} 53... Rxb7 {[%clk 0:00:03.6]} 54.
Rxb7 {[%clk 0:00:02.7]} 54... Kxb7 {[%clk 0:00:04.5]} 55. Kf5 {[%clk 0:00:02.8]}
55... a3 {[%clk 0:00:02.9]} 0-1

[Event "*** Titled Tuesday Blitz"]
[Site "Chess.com"]
[Date "2021.04.27"]
[Round "3"]
[White "m_ezat"]
[Black "attack2mateU"]
[Result "0-1"]
[WhiteElo "2491"]
[BlackElo "2724"]
[TimeControl "180+1"]
[EndTime "10:29:14 PDT"]
[Termination "attack2mateU won on time"]

1. d4 {[%clk 0:03:00.9]} 1... Nf6 {[%clk 0:02:59.8]} 2. c4 {[%clk 0:03:01]} 2...
g6 {[%clk 0:03:00.2]} 3. Nc3 {[%clk 0:03:01.2]} 3... d5 {[%clk 0:03:00.5]} 4.
Nf3 {[%clk 0:03:00.3]} 4... Bg7 {[%clk 0:03:00.5]} 5. Bf4 {[%clk 0:03:00.1]}
5... O-O {[%clk 0:02:54.9]} 6. Rc1 {[%clk 0:03:00.5]} 6... Be6 {[%clk
0:02:47.9]} 7. e3 {[%clk 0:03:00.2]} 7... c5 {[%clk 0:02:37.2]} 8. dxc5 {[%clk
0:02:56.8]} 8... Qa5 {[%clk 0:01:55.9]} 9. Nd4 {[%clk 0:02:55.5]} 9... Ne4
{[%clk 0:01:52.3]} 10. Bd3 {[%clk 0:02:43.3]} 10... Nxc5 {[%clk 0:01:36.9]} 11.
Bc2 {[%clk 0:02:33]} 11... dxc4 {[%clk 0:01:34.4]} 12. O-O {[%clk 0:02:32.3]}
12... Nc6 {[%clk 0:01:30.3]} 13. Nxe6 {[%clk 0:02:29.5]} 13... Nxe6 {[%clk
0:01:30.1]} 14. Bg3 {[%clk 0:02:29.5]} 14... Rfd8 {[%clk 0:01:10.4]} 15. Qf3
{[%clk 0:02:29.2]} 15... Ng5 {[%clk 0:00:46.8]} 16. Qe2 {[%clk 0:02:23.3]} 16...
b5 {[%clk 0:00:45.5]} 17. a4 {[%clk 0:02:22]} 17... b4 {[%clk 0:00:44.2]} 18.
Nb5 {[%clk 0:02:21.2]} 18... Rac8 {[%clk 0:00:38.8]} 19. Qxc4 {[%clk 0:02:11.6]}
19... Nd4 {[%clk 0:00:38.4]} 20. Bc7 {[%clk 0:02:04.3]} 20... Rxc7 {[%clk
0:00:17.9]} 21. Nxc7 {[%clk 0:01:54.2]} 21... Rc8 {[%clk 0:00:09.5]} 22. exd4
{[%clk 0:01:16.7]} 22... Rxc7 {[%clk 0:00:09.4]} 23. Qd3 {[%clk 0:01:16.6]}
23... Ne6 {[%clk 0:00:09.7]} 24. Bb3 {[%clk 0:01:08.4]} 24... Nxd4 {[%clk
0:00:09.5]} 25. h3 {[%clk 0:01:02.2]} 25... e6 {[%clk 0:00:08.5]} 26. Rfe1
{[%clk 0:00:55.5]} 26... Qb6 {[%clk 0:00:07.8]} 27. Rxc7 {[%clk 0:00:49.8]}
27... Qxc7 {[%clk 0:00:08.7]} 28. Rd1 {[%clk 0:00:45.4]} 28... a5 {[%clk
0:00:09]} 29. Bc4 {[%clk 0:00:42.7]} 29... Qe5 {[%clk 0:00:07.7]} 30. b3 {[%clk
0:00:42.1]} 30... h5 {[%clk 0:00:08.1]} 31. Qe3 {[%clk 0:00:37.2]} 31... Qf6
{[%clk 0:00:04.6]} 32. Qe4 {[%clk 0:00:36.5]} 32... h4 {[%clk 0:00:05]} 33. Qa8+
{[%clk 0:00:30.3]} 33... Kh7 {[%clk 0:00:05.4]} 34. Qxa5 {[%clk 0:00:30.3]}
34... Qf4 {[%clk 0:00:06]} 35. Qc5 {[%clk 0:00:19.6]} 35... Be5 {[%clk
0:00:06.3]} 36. f3 {[%clk 0:00:02.9]} 36... Qe3+ {[%clk 0:00:05.1]} 37. Kh1
{[%clk 0:00:02.7]} 37... Qf4 {[%clk 0:00:04.9]} 38. Kg1 {[%clk 0:00:02.7]} 38...
Nf5 {[%clk 0:00:05.2]} 39. Qf2 {[%clk 0:00:01.9]} 39... Qh2+ {[%clk 0:00:04.5]}
40. Kf1 {[%clk 0:00:01.5]} 40... Ng3+ {[%clk 0:00:02.2]} 41. Ke1 {[%clk
0:00:02.1]} 41... Bf4 {[%clk 0:00:02.2]} 42. Rd2 {[%clk 0:00:02.7]} 42... Qh1+
{[%clk 0:00:02.3]} 43. Bf1 {[%clk 0:00:01.7]} 43... Bxd2+ {[%clk 0:00:02.8]} 44.
Kxd2 {[%clk 0:00:01.9]} 44... Nxf1+ {[%clk 0:00:03.4]} 45. Kd3 {[%clk
0:00:02.6]} 45... Ng3 {[%clk 0:00:04.3]} 46. Qe3 {[%clk 0:00:02.9]} 46... Qb1+
{[%clk 0:00:04.7]} 47. Kc4 {[%clk 0:00:03.5]} 47... Qc2+ {[%clk 0:00:04.6]} 48.
Kxb4 {[%clk 0:00:04]} 48... Nf5 {[%clk 0:00:05.3]} 49. Qe4 {[%clk 0:00:03.7]}
49... Qxg2 {[%clk 0:00:04.9]} 50. Ka3 {[%clk 0:00:04.1]} 50... Qxh3 {[%clk
0:00:05.1]} 51. a5 {[%clk 0:00:04.3]} 51... Qf1 {[%clk 0:00:05.5]} 52. Qf4
{[%clk 0:00:03.3]} 52... h3 {[%clk 0:00:05.7]} 53. Qg5 {[%clk 0:00:02.3]} 53...
h2 {[%clk 0:00:05]} 54. Qxg6+ {[%clk 0:00:02.8]} 54... fxg6 {[%clk 0:00:05]} 55.
a6 {[%clk 0:00:02.4]} 55... Qxa6+ {[%clk 0:00:04.6]} 0-1

[Event "*** Titled Tuesday Blitz"]
[Site "Chess.com"]
[Date "2021.04.27"]
[Round "3"]
[White "Marty435"]
[Black "Chandradi"]
[Result "1-0"]
[WhiteElo "2597"]
[BlackElo "2368"]
[TimeControl "180+1"]
[EndTime "10:29:15 PDT"]
[Termination "Marty435 won by checkmate"]

1. e3 {[%clk 0:03:00.9]} 1... Nf6 {[%clk 0:02:53.7]} 2. Nf3 {[%clk 0:02:59]}
2... c5 {[%clk 0:02:52.9]} 3. b3 {[%clk 0:02:56.4]} 3... e6 {[%clk 0:02:52.5]}
4. Bb2 {[%clk 0:02:56.9]} 4... Be7 {[%clk 0:02:52.7]} 5. c4 {[%clk 0:02:56]}
5... b6 {[%clk 0:02:52.4]} 6. Nc3 {[%clk 0:02:56.5]} 6... Bb7 {[%clk 0:02:52.5]}
7. Be2 {[%clk 0:02:56.2]} 7... O-O {[%clk 0:02:52.5]} 8. O-O {[%clk 0:02:56.8]}
8... d5 {[%clk 0:02:51.2]} 9. cxd5 {[%clk 0:02:54.9]} 9... Nxd5 {[%clk 0:02:51]}
10. Nxd5 {[%clk 0:02:54.2]} 10... Bxd5 {[%clk 0:02:49.6]} 11. d4 {[%clk
0:02:48.5]} 11... Bf6 {[%clk 0:02:46.6]} 12. Rc1 {[%clk 0:02:46.5]} 12... Nd7
{[%clk 0:02:40.8]} 13. Ba3 {[%clk 0:02:45.8]} 13... Be7 {[%clk 0:02:34.2]} 14.
Bb2 {[%clk 0:02:36.4]} 14... Bf6 {[%clk 0:02:33.5]} 15. Qd2 {[%clk 0:02:33.7]}
15... Rc8 {[%clk 0:02:32.3]} 16. Rfd1 {[%clk 0:02:24.8]} 16... cxd4 {[%clk
0:02:32.1]} 17. Nxd4 {[%clk 0:02:23.7]} 17... Rxc1 {[%clk 0:02:31.6]} 18. Rxc1
{[%clk 0:02:21.6]} 18... Qa8 {[%clk 0:02:31.7]} 19. Nf3 {[%clk 0:02:15]} 19...
Bxb2 {[%clk 0:02:20.6]} 20. Qxb2 {[%clk 0:02:15.9]} 20... Rc8 {[%clk 0:02:20.4]}
21. Rxc8+ {[%clk 0:02:11.1]} 21... Qxc8 {[%clk 0:02:19.7]} 22. Nd4 {[%clk
0:02:11.8]} 22... h6 {[%clk 0:02:12.3]} 23. Bf3 {[%clk 0:02:11.6]} 23... Qc5
{[%clk 0:02:05.9]} 24. Bxd5 {[%clk 0:02:10.3]} 24... Qxd5 {[%clk 0:02:06.2]} 25.
Qc2 {[%clk 0:02:08.7]} 25... Qc5 {[%clk 0:01:52.4]} 26. Qxc5 {[%clk 0:02:05.7]}
26... Nxc5 {[%clk 0:01:53.3]} 27. Kf1 {[%clk 0:01:57.7]} 27... Kf8 {[%clk
0:01:50.8]} 28. Ke2 {[%clk 0:01:57.8]} 28... Ke8 {[%clk 0:01:49.4]} 29. Nb5
{[%clk 0:01:50]} 29... a6 {[%clk 0:01:42.1]} 30. Nd6+ {[%clk 0:01:47.9]} 30...
Kf8 {[%clk 0:01:37]} 31. b4 {[%clk 0:01:45.8]} 31... Nd7 {[%clk 0:01:34.6]} 32.
Kd3 {[%clk 0:01:38.1]} 32... Ke7 {[%clk 0:01:34.9]} 33. Nc8+ {[%clk 0:01:37.1]}
33... Ke8 {[%clk 0:01:32.5]} 34. a4 {[%clk 0:01:31.3]} 34... Kd8 {[%clk
0:01:29.6]} 35. Nd6 {[%clk 0:01:31]} 35... f6 {[%clk 0:01:26]} 36. f4 {[%clk
0:01:23.5]} 36... Ke7 {[%clk 0:01:21.8]} 37. Ne4 {[%clk 0:01:23.5]} 37... Nb8
{[%clk 0:01:16.3]} 38. Kc4 {[%clk 0:01:22.7]} 38... Kd7 {[%clk 0:01:10.2]} 39.
g4 {[%clk 0:01:20.7]} 39... Kc6 {[%clk 0:01:08.3]} 40. Nc3 {[%clk 0:01:09]}
40... Nd7 {[%clk 0:01:04.1]} 41. h4 {[%clk 0:01:02.4]} 41... g5 {[%clk
0:00:56.3]} 42. b5+ {[%clk 0:00:56.7]} 42... axb5+ {[%clk 0:00:55.4]} 43. axb5+
{[%clk 0:00:57.6]} 43... Kc7 {[%clk 0:00:51.1]} 44. hxg5 {[%clk 0:00:55.5]}
44... hxg5 {[%clk 0:00:49.8]} 45. Kd4 {[%clk 0:00:44.5]} 45... gxf4 {[%clk
0:00:44.8]} 46. exf4 {[%clk 0:00:45.4]} 46... e5+ {[%clk 0:00:45.2]} 47. Ke4
{[%clk 0:00:40]} 47... exf4 {[%clk 0:00:42]} 48. Kxf4 {[%clk 0:00:40.9]} 48...
Kd6 {[%clk 0:00:41.4]} 49. Kf5 {[%clk 0:00:41.5]} 49... Kc5 {[%clk 0:00:31.9]}
50. Ne4+ {[%clk 0:00:42.1]} 50... Kxb5 {[%clk 0:00:31.9]} 51. Nxf6 {[%clk
0:00:43]} 51... Nf8 {[%clk 0:00:22.8]} 52. g5 {[%clk 0:00:40.9]} 52... Kc4
{[%clk 0:00:20.4]} 53. Nh7 {[%clk 0:00:27.7]} 53... b5 {[%clk 0:00:11.7]} 54.
Nxf8 {[%clk 0:00:19.5]} 54... b4 {[%clk 0:00:12.1]} 55. g6 {[%clk 0:00:20.4]}
55... b3 {[%clk 0:00:12.4]} 56. g7 {[%clk 0:00:21.3]} 56... b2 {[%clk
0:00:12.6]} 57. g8=Q+ {[%clk 0:00:22.2]} 57... Kc3 {[%clk 0:00:13.2]} 58. Qg1
{[%clk 0:00:19.8]} 58... Kc2 {[%clk 0:00:12.5]} 59. Qf2+ {[%clk 0:00:20.2]}
59... Kb1 {[%clk 0:00:12.3]} 60. Qe1+ {[%clk 0:00:20.5]} 60... Ka2 {[%clk
0:00:12.4]} 61. Qd2 {[%clk 0:00:21]} 61... Ka1 {[%clk 0:00:12.7]} 62. Qc3 {[%clk
0:00:21]} 62... Ka2 {[%clk 0:00:12.7]} 63. Qc2 {[%clk 0:00:20.1]} 63... Ka1
{[%clk 0:00:12.8]} 64. Qa4+ {[%clk 0:00:20.5]} 64... Kb1 {[%clk 0:00:13.4]} 65.
Ke4 {[%clk 0:00:21]} 65... Kc1 {[%clk 0:00:13.2]} 66. Qc4+ {[%clk 0:00:20.5]}
66... Kd1 {[%clk 0:00:13.2]} 67. Qb3+ {[%clk 0:00:20.8]} 67... Kc1 {[%clk
0:00:13.5]} 68. Qc3+ {[%clk 0:00:20.8]} 68... Kb1 {[%clk 0:00:14]} 69. Kd3
{[%clk 0:00:21.3]} 69... Ka2 {[%clk 0:00:14.4]} 70. Qa5+ {[%clk 0:00:20.1]}
70... Kb1 {[%clk 0:00:14.9]} 71. Qa4 {[%clk 0:00:16.9]} 71... Kc1 {[%clk
0:00:13.5]} 72. Qc2# {[%clk 0:00:17.8]} 1-0

[Event "*** Titled Tuesday Blitz"]
[Site "Chess.com"]
[Date "2021.04.27"]
[Round "3"]
[White "retropwr"]
[Black "thechesscorner64"]
[Result "1-0"]
[WhiteElo "2238"]
[BlackElo "2388"]
[TimeControl "180+1"]
[EndTime "10:29:16 PDT"]
[Termination "retropwr won by checkmate"]

1. c4 {[%clk 0:03:00.9]} 1... e5 {[%clk 0:02:58.8]} 2. Nc3 {[%clk 0:03:00.2]}
2... Nc6 {[%clk 0:02:58.9]} 3. Nf3 {[%clk 0:02:57.8]} 3... f5 {[%clk 0:02:57.3]}
4. g3 {[%clk 0:02:52.9]} 4... Nf6 {[%clk 0:02:55.6]} 5. d4 {[%clk 0:02:52.5]}
5... e4 {[%clk 0:02:50.7]} 6. Nh4 {[%clk 0:02:52.4]} 6... g6 {[%clk 0:02:47.3]}
7. Bg5 {[%clk 0:02:46]} 7... Be7 {[%clk 0:02:45.2]} 8. e3 {[%clk 0:02:41.8]}
8... Ng8 {[%clk 0:02:38.3]} 9. Bxe7 {[%clk 0:02:39.2]} 9... Ncxe7 {[%clk
0:02:38.2]} 10. Ng2 {[%clk 0:02:33.5]} 10... Nf6 {[%clk 0:02:35.2]} 11. h4
{[%clk 0:02:26.8]} 11... d6 {[%clk 0:02:22.9]} 12. Nf4 {[%clk 0:02:25.8]} 12...
Bd7 {[%clk 0:02:18.6]} 13. Qb3 {[%clk 0:02:19.5]} 13... c6 {[%clk 0:01:57.7]}
14. Be2 {[%clk 0:02:14.6]} 14... Qb6 {[%clk 0:01:54.4]} 15. Na4 {[%clk
0:02:06.6]} 15... Qxb3 {[%clk 0:01:54.5]} 16. axb3 {[%clk 0:02:07.5]} 16... O-O
{[%clk 0:01:53.3]} 17. Kd2 {[%clk 0:02:04.8]} 17... b5 {[%clk 0:01:37.7]} 18.
cxb5 {[%clk 0:01:46.3]} 18... cxb5 {[%clk 0:01:37.7]} 19. Nc3 {[%clk 0:01:46.1]}
19... a6 {[%clk 0:01:37]} 20. Rhc1 {[%clk 0:01:34.8]} 20... Rfc8 {[%clk
0:01:35.7]} 21. b4 {[%clk 0:01:29.5]} 21... Kg7 {[%clk 0:01:30.6]} 22. Ra3
{[%clk 0:01:26.5]} 22... h6 {[%clk 0:01:10.6]} 23. Rca1 {[%clk 0:01:22.2]} 23...
g5 {[%clk 0:01:10.5]} 24. hxg5 {[%clk 0:01:22.3]} 24... hxg5 {[%clk 0:01:11.4]}
25. Nh3 {[%clk 0:01:21.3]} 25... Kg6 {[%clk 0:01:03.3]} 26. Rxa6 {[%clk
0:01:20]} 26... Rxa6 {[%clk 0:01:03.4]} 27. Rxa6 {[%clk 0:01:20.8]} 27... f4
{[%clk 0:01:03.7]} 28. Ng1 {[%clk 0:00:44.6]} 28... f3 {[%clk 0:00:55.6]} 29.
Bxb5 {[%clk 0:00:44.4]} 29... Bxb5 {[%clk 0:00:56.2]} 30. Nxb5 {[%clk
0:00:44.4]} 30... Ned5 {[%clk 0:00:56.1]} 31. Nxd6 {[%clk 0:00:39.4]} 31... Rc2+
{[%clk 0:00:51.9]} 32. Kxc2 {[%clk 0:00:29.4]} 32... Nxb4+ {[%clk 0:00:52]} 33.
Kb3 {[%clk 0:00:13.2]} 33... Nxa6 {[%clk 0:00:52.9]} 34. Nh3 {[%clk 0:00:13.2]}
34... Nd5 {[%clk 0:00:46.7]} 35. Nxe4 {[%clk 0:00:11.5]} 35... g4 {[%clk
0:00:46]} 36. Nf4+ {[%clk 0:00:10.9]} 36... Nxf4 {[%clk 0:00:46.4]} 37. exf4
{[%clk 0:00:09.5]} 37... Kf5 {[%clk 0:00:43.3]} 38. Nd2 {[%clk 0:00:08.8]} 38...
Ke6 {[%clk 0:00:40.8]} 39. Kc4 {[%clk 0:00:09.3]} 39... Nc7 {[%clk 0:00:39.1]}
40. Ne4 {[%clk 0:00:07.1]} 40... Nd5 {[%clk 0:00:35.4]} 41. Ng5+ {[%clk
0:00:07.3]} 41... Kd6 {[%clk 0:00:35]} 42. Nf7+ {[%clk 0:00:07.6]} 42... Kc6
{[%clk 0:00:34.9]} 43. Ne5+ {[%clk 0:00:08]} 43... Kd6 {[%clk 0:00:34.8]} 44.
Nxg4 {[%clk 0:00:08.4]} 44... Nb6+ {[%clk 0:00:33.4]} 45. Kd3 {[%clk 0:00:08.5]}
45... Kd5 {[%clk 0:00:32.9]} 46. Nf6+ {[%clk 0:00:07.2]} 46... Ke6 {[%clk
0:00:32.6]} 47. Ne4 {[%clk 0:00:05.7]} 47... Kd5 {[%clk 0:00:33]} 48. Ng5 {[%clk
0:00:05.7]} 48... Na4 {[%clk 0:00:28.4]} 49. b3 {[%clk 0:00:06.1]} 49... Nb2+
{[%clk 0:00:27.2]} 50. Kc2 {[%clk 0:00:05.9]} 50... Kxd4 {[%clk 0:00:26.6]} 51.
Kxb2 {[%clk 0:00:05.2]} 51... Kd3 {[%clk 0:00:27.5]} 52. Nxf3 {[%clk 0:00:05.7]}
52... Ke2 {[%clk 0:00:28.4]} 53. Ne5 {[%clk 0:00:06]} 53... Kxf2 {[%clk
0:00:29.3]} 54. f5 {[%clk 0:00:06.9]} 54... Kxg3 {[%clk 0:00:30]} 55. f6 {[%clk
0:00:07.8]} 55... Kf4 {[%clk 0:00:30.4]} 56. f7 {[%clk 0:00:08.7]} 56... Ke4
{[%clk 0:00:31]} 57. f8=Q {[%clk 0:00:09.6]} 57... Kd5 {[%clk 0:00:31.3]} 58.
Nd7 {[%clk 0:00:10.2]} 58... Kc6 {[%clk 0:00:31]} 59. Qc5+ {[%clk 0:00:09.8]}
59... Kb7 {[%clk 0:00:31]} 60. Qb6+ {[%clk 0:00:10]} 60... Kc8 {[%clk
0:00:31.7]} 61. Qb8+ {[%clk 0:00:07.2]} 61... Kxd7 {[%clk 0:00:31.7]} 62. Qb6
{[%clk 0:00:07.7]} 62... Kc8 {[%clk 0:00:31.1]} 63. b4 {[%clk 0:00:08.6]} 63...
Kd7 {[%clk 0:00:31.5]} 64. b5 {[%clk 0:00:09.5]} 64... Kc8 {[%clk 0:00:32.4]}
65. Qa6+ {[%clk 0:00:06.9]} 65... Kd7 {[%clk 0:00:33.3]} 66. b6 {[%clk
0:00:06.2]} 66... Kc6 {[%clk 0:00:34.1]} 67. b7+ {[%clk 0:00:06.2]} 67... Kc7
{[%clk 0:00:35]} 68. Qa7 {[%clk 0:00:05.3]} 68... Kc6 {[%clk 0:00:35.1]} 69.
b8=Q {[%clk 0:00:05.8]} 69... Kd5 {[%clk 0:00:34.6]} 70. Qd8+ {[%clk 0:00:05.6]}
70... Ke4 {[%clk 0:00:35.4]} 71. Qae7+ {[%clk 0:00:05.7]} 71... Kf3 {[%clk
0:00:35.9]} 72. Qdf8+ {[%clk 0:00:06.4]} 72... Kg2 {[%clk 0:00:36.8]} 73. Qeg7+
{[%clk 0:00:07]} 73... Kh1 {[%clk 0:00:37.7]} 74. Qfh8# {[%clk 0:00:07.6]} 1-0

[Event "*** Titled Tuesday Blitz"]
[Site "Chess.com"]
[Date "2021.04.27"]
[Round "3"]
[White "alexrustemov"]
[Black "dropstoneDP"]
[Result "0-1"]
[WhiteElo "2589"]
[BlackElo "2923"]
[TimeControl "180+1"]
[EndTime "10:29:17 PDT"]
[Termination "dropstoneDP won on time"]

1. d4 {[%clk 0:03:00.9]} 1... f5 {[%clk 0:02:59.4]} 2. g3 {[%clk 0:03:00.6]}
2... Nf6 {[%clk 0:02:59.5]} 3. Bg2 {[%clk 0:03:01.2]} 3... g6 {[%clk 0:03:00.3]}
4. Nf3 {[%clk 0:03:01.7]} 4... Bg7 {[%clk 0:03:00.8]} 5. O-O {[%clk 0:03:02.3]}
5... O-O {[%clk 0:03:01.5]} 6. b3 {[%clk 0:03:02.7]} 6... b6 {[%clk 0:03:00.7]}
7. Bb2 {[%clk 0:02:55]} 7... Bb7 {[%clk 0:03:01]} 8. Nbd2 {[%clk 0:02:52.5]}
8... e6 {[%clk 0:03:00.6]} 9. c4 {[%clk 0:02:38.4]} 9... Qe7 {[%clk 0:02:49.9]}
10. Qc2 {[%clk 0:02:33.3]} 10... d6 {[%clk 0:02:32.9]} 11. Rfe1 {[%clk
0:02:17.9]} 11... Nbd7 {[%clk 0:02:29.9]} 12. Rad1 {[%clk 0:02:08.9]} 12... a5
{[%clk 0:02:26.6]} 13. a3 {[%clk 0:02:06.6]} 13... Ne4 {[%clk 0:02:20.5]} 14. e3
{[%clk 0:01:57.1]} 14... Nxd2 {[%clk 0:02:14.1]} 15. Nxd2 {[%clk 0:01:44.9]}
15... Bxg2 {[%clk 0:02:13.6]} 16. Kxg2 {[%clk 0:01:45.8]} 16... g5 {[%clk
0:02:11]} 17. e4 {[%clk 0:01:38.2]} 17... f4 {[%clk 0:02:08.8]} 18. g4 {[%clk
0:01:21.2]} 18... h5 {[%clk 0:01:54.1]} 19. h3 {[%clk 0:01:21.1]} 19... f3+
{[%clk 0:01:35.5]} 20. Nxf3 {[%clk 0:01:20.3]} 20... hxg4 {[%clk 0:01:35.6]} 21.
hxg4 {[%clk 0:01:20.5]} 21... Rf4 {[%clk 0:01:36.2]} 22. Nh2 {[%clk 0:01:19.8]}
22... Nf8 {[%clk 0:01:36.2]} 23. Bc1 {[%clk 0:01:18.5]} 23... Ng6 {[%clk
0:00:42.2]} 24. Rh1 {[%clk 0:01:00.6]} 24... Nh4+ {[%clk 0:00:39.5]} 25. Kf1
{[%clk 0:00:59.8]} 25... Rf7 {[%clk 0:00:33.6]} 26. Be3 {[%clk 0:00:59.4]} 26...
Raf8 {[%clk 0:00:21.9]} 27. Ke2 {[%clk 0:00:59.5]} 27... d5 {[%clk 0:00:20.2]}
28. e5 {[%clk 0:00:57.8]} 28... dxc4 {[%clk 0:00:17.8]} 29. bxc4 {[%clk
0:00:58.7]} 29... Qxa3 {[%clk 0:00:17.3]} 30. c5 {[%clk 0:00:37.2]} 30... bxc5
{[%clk 0:00:16.2]} 31. Qxc5 {[%clk 0:00:38.1]} 31... Qxc5 {[%clk 0:00:12.6]} 32.
dxc5 {[%clk 0:00:38.8]} 32... Bxe5 {[%clk 0:00:13.4]} 33. Rdf1 {[%clk
0:00:14.8]} 33... Bf4 {[%clk 0:00:10.6]} 34. Ra1 {[%clk 0:00:07.5]} 34... Bxe3
{[%clk 0:00:09.1]} 35. fxe3 {[%clk 0:00:08.3]} 35... Rf2+ {[%clk 0:00:08.9]} 36.
Kd3 {[%clk 0:00:08.9]} 36... Rd8+ {[%clk 0:00:08.8]} 37. Ke4 {[%clk 0:00:09.2]}
37... Ra8 {[%clk 0:00:05.6]} 38. Ra4 {[%clk 0:00:08.4]} 38... Kg7 {[%clk
0:00:05.7]} 39. Nf1 {[%clk 0:00:08.5]} 39... Rb2 {[%clk 0:00:03.6]} 40. Ng3
{[%clk 0:00:08.1]} 40... Kg6 {[%clk 0:00:02.8]} 41. Nh5 {[%clk 0:00:06]} 41...
Rb4+ {[%clk 0:00:02.7]} 42. Rxb4 {[%clk 0:00:05.9]} 42... axb4 {[%clk
0:00:03.6]} 43. Rf1 {[%clk 0:00:05.8]} 43... b3 {[%clk 0:00:01.4]} 44. Rb1
{[%clk 0:00:04.9]} 44... Rb8 {[%clk 0:00:01.4]} 45. Kd3 {[%clk 0:00:05.2]} 45...
Rb4 {[%clk 0:00:02.1]} 46. Kc3 {[%clk 0:00:05.2]} 46... Rxg4 {[%clk 0:00:02.9]}
47. Rxb3 {[%clk 0:00:02.7]} 47... Kxh5 {[%clk 0:00:03.1]} 48. Rb7 {[%clk
0:00:03.6]} 48... Nf5 {[%clk 0:00:03.4]} 49. Rxc7 {[%clk 0:00:03.9]} 49... Nxe3
{[%clk 0:00:04]} 50. Kd3 {[%clk 0:00:03.9]} 50... Nd5 {[%clk 0:00:04.5]} 51. Rc6
{[%clk 0:00:02.8]} 51... Ra4 {[%clk 0:00:04]} 52. Rd6 {[%clk 0:00:01.8]} 52...
Kg4 {[%clk 0:00:03]} 53. c6 {[%clk 0:00:02.1]} 53... Kf5 {[%clk 0:00:03.2]} 54.
Rd7 {[%clk 0:00:01.6]} 54... Nb4+ {[%clk 0:00:03.5]} 55. Kc4 {[%clk 0:00:01.2]}
55... Nxc6+ {[%clk 0:00:04.4]} 56. Kb5 {[%clk 0:00:02.1]} 56... Ne5 {[%clk
0:00:03.6]} 0-1